bitfinex/quotes_ETHUSD_20260216
["timestamp","ask_amount","ask_price","bid_price","bid_amount"]
[1771208058593,1.26806599,1964.3,1964.2,0.001]
[1771208059992,0.45106599,1964.2,1964.1,0.001]
[1771208060392,0.45106599,1964.2,1963.8,0.001]
[1771208060931,0.45106599,1964.6,1963.8,0.50059818]
[1771208061229,7.78273513,1964.9,1964.0,0.49959818]
[1771208061399,0.0011,1964.9,1964.2,0.49959818]
[1771208061719,0.825,1964.7,1964.3,8.28123331]
[1771208061929,0.0011,1964.9,1964.3,8.28123331]
[1771208062130,1.27716599,1964.8,1964.1,7.78163513]
[1771208062301,1.27716599,1964.8,1964.0,0.49959818]
[1771208063922,0.45216599,1964.8,1964.1,0.0509113]
[1771208064101,0.824,1964.7,1964.1,8.33214461]
[1771208064898,0.0011,1964.8,1964.1,8.33214461]
[1771208065100,0.824,1964.7,1964.1,8.33214461]
[1771208066100,0.824,1964.7,1964.1,8.28123331]
[1771208066301,0.824,1964.7,1964.2,0.05090352]
[1771208066495,0.45106599,1964.6,1963.9,8.28223331]
[1771208066697,0.824,1964.7,1964.0,0.49959818]
[1771208066927,0.0011,1964.8,1964.2,0.49959818]
[1771208067130,0.823,1964.6,1964.2,0.49959818]
[1771208067501,0.0011,1964.8,1964.3,8.28123331]
[1771208067708,0.823,1964.7,1964.3,0.49959818]
[1771208067932,1.27406599,1964.7,1964.0,7.78163513]
[1771208068621,1.27406599,1964.7,1964.0,8.28123331]
[1771208068932,0.45106599,1964.6,1963.9,0.001]
[1771208071525,0.45106599,1964.6,1963.9,0.50059818]
[1771208072036,0.45106599,1964.6,1964.1,0.001]
[1771208072335,0.45216599,1964.6,1964.1,0.001]
[1771208072632,0.824,1964.5,1964.1,0.001]
[1771208075815,0.824,1964.4,1964.1,0.001]
[1771208077245,0.825,1964.4,1964.1,0.001]
[1771208083027,0.826,1964.4,1964.1,0.001]
[1771208083326,0.826,1964.4,1964.1,0.50059818]
[1771208083550,0.826,1964.4,1964.1,0.001]
[1771208084248,0.8271,1964.4,1964.1,0.001]
[1771208084854,1.30919458,1964.4,1964.1,0.001]
[1771208085947,0.8271,1964.4,1964.1,0.001]
[1771208088751,0.0011,1964.4,1964.1,0.001]
[1771208088941,0.8291,1964.4,1964.1,0.001]
[1771208090668,0.46254117,1964.3,1964.1,0.001]
[1771208090837,0.46254117,1964.3,1964.0,0.001]
[1771208091437,0.46254117,1964.2,1964.0,0.001]
[1771208092637,1.29454117,1964.1,1964.0,0.001]
[1771208093469,0.46254117,1964.3,1964.0,0.001]
[1771208093670,1.29554117,1964.2,1964.0,0.001]
[1771208096761,1.29554117,1964.2,1964.1,0.001]
[1771208096965,1.29664117,1964.2,1964.0,0.001]
[1771208097162,0.0011,1964.2,1964.0,0.001]
[1771208098670,0.0011,1964.4,1964.1,0.48095117]
[1771208098874,0.00263886,1965.0,1964.3,7.78163513]
[1771208099169,0.0011,1965.5,1965.0,0.48095117]
[1771208099380,0.0011,1965.5,1965.3,7.78163513]
[1771208099739,0.8391,1965.8,1965.3,7.78163513]
[1771208099939,0.00813886,1965.7,1965.1,0.48095117]
[1771208100136,0.47068003,1965.7,1964.9,1.39095117]
[1771208100371,0.47068003,1965.7,1964.3,0.48095117]
[1771208100768,0.46254117,1965.5,1964.5,0.48095117]
[1771208101270,1.30968003,1965.4,1964.5,0.48095117]
[1771208101442,0.46254117,1965.3,1964.2,0.91]
[1771208101771,1.30354117,1965.2,1964.3,0.48095117]
[1771208101967,0.00813886,1965.1,1964.3,0.48095117]
[1771208102465,0.47068003,1965.1,1964.3,0.48095117]
[1771208102665,0.47068003,1965.1,1964.1,0.48095117]
[1771208103549,0.47068003,1965.1,1964.1,0.51270183]
[1771208103754,0.84913886,1965.1,1964.1,0.51270183]
[1771208105083,0.00813886,1965.1,1964.2,0.48095117]
[1771208105387,0.84,1965.5,1964.5,0.48095117]
[1771208105554,0.00813886,1965.3,1964.5,0.48095117]
[1771208106505,0.84,1965.6,1964.5,0.48095117]
[1771208106813,0.47068003,1965.5,1964.5,0.48095117]
[1771208107010,0.00813886,1965.5,1964.6,0.48095117]
[1771208107196,0.00813886,1965.5,1964.8,0.48095117]
[1771208107710,0.47068003,1965.5,1964.5,0.48095117]
[1771208108611,0.00813886,1965.4,1964.5,0.48095117]
[1771208108792,0.47068003,1965.4,1964.5,0.48095117]
[1771208109408,0.0011,1965.2,1964.5,0.48095117]
[1771208109810,0.00813886,1965.1,1964.5,0.48095117]
[1771208112392,0.47068003,1965.1,1964.3,0.914]
[1771208114598,0.47068003,1965.1,1964.3,1.38654897]
[1771208117333,0.47068003,1965.1,1964.3,0.914]
[1771208117505,0.49604807,1965.0,1964.2,0.001]
[1771208117913,0.00813886,1965.0,1964.2,0.47354897]
[1771208118226,0.00813886,1965.0,1964.3,0.47254897]
[1771208119016,0.00813886,1964.9,1964.3,0.47254897]
[1771208119221,0.00813886,1965.1,1964.3,0.47254897]
[1771208121610,0.00813886,1965.1,1964.4,0.001]
[1771208121938,0.49604807,1965.1,1964.4,0.001]
[1771208123821,0.48790921,1965.0,1964.4,0.001]
[1771208124205,0.48790921,1964.8,1964.2,0.001]
[1771208126641,0.48790921,1964.6,1964.2,0.001]
[1771208127970,0.00613886,1964.5,1964.2,0.001]
[1771208128139,1.32090921,1964.8,1964.2,0.001]
[1771208128337,0.00613886,1964.7,1964.2,0.001]
[1771208128854,0.49404807,1964.7,1964.2,0.001]
[1771208130237,0.00613886,1964.7,1964.2,0.001]
[1771208132061,0.00613886,1964.7,1964.3,0.05085799]
[1771208132261,0.00613886,1964.7,1964.2,0.001]
[1771208132463,0.49404807,1964.7,1964.2,0.001]
[1771208134359,0.49404807,1964.7,1964.3,0.001]
[1771208135789,0.00613886,1964.7,1964.3,0.001]
[1771208136082,0.49404807,1964.7,1964.3,0.001]
[1771208136540,0.48790921,1964.7,1964.3,0.001]
[1771208136743,0.48790921,1964.5,1963.9,0.001]
[1771208136947,0.48790921,1964.5,1963.2,0.47254897]
[1771208137180,0.48790921,1964.3,1963.3,0.47254897]
[1771208137480,1.31990921,1964.3,1963.3,0.47254897]
[1771208137650,0.0036,1964.2,1963.3,0.47254897]
[1771208138051,0.0036,1964.1,1963.3,0.47254897]
[1771208138253,0.49150921,1964.2,1963.3,0.47254897]
[1771208138762,0.0036,1964.1,1963.3,0.47254897]
[1771208139147,0.0036,1964.0,1963.3,0.47254897]
[1771208139343,0.0036,1964.1,1963.3,0.47254897]
[1771208139793,0.48790921,1964.6,1963.7,0.47354897]
[1771208140087,0.833,1964.5,1963.7,0.47354897]
[1771208140386,0.8366,1964.5,1963.7,0.47354897]
[1771208141556,0.0036,1964.5,1963.7,0.47354897]
[1771208145958,0.0036,1964.5,1963.8,0.001]
[1771208146281,0.0036,1964.5,1963.8,0.47631985]
[1771208146580,0.48600164,1964.5,1963.8,0.001]
[1771208147479,0.0036,1964.4,1963.8,0.001]
[1771208148381,0.0036,1964.4,1963.8,0.47631985]
[1771208148751,0.0011,1964.6,1964.0,0.47531985]
[1771208149187,0.0011,1964.6,1964.2,0.47531985]
[1771208149490,0.0047,1964.6,1964.2,0.47531985]
[1771208151169,0.0011,1964.6,1964.2,0.47531985]
[1771208151378,0.0036,1964.5,1964.2,0.47531985]
[1771208152891,0.0036,1964.5,1964.3,0.05090612]
[1771208153690,0.0036,1964.5,1964.3,0.52622597]
[1771208155366,0.0011,1964.6,1964.3,0.52622597]
[1771208155568,0.0036,1964.5,1964.3,0.52622597]
[1771208159094,0.0011,1964.9,1964.4,0.47531985]
[1771208159300,0.0011,1964.9,1964.5,0.52622078]
[1771208159468,0.0011,1964.8,1964.5,0.52622078]
[1771208159868,0.00153886,1965.0,1964.5,0.52622078]
[1771208160495,0.4839405,1965.0,1964.3,0.05090097]
[1771208160798,0.4839405,1965.0,1964.1,0.05090097]
[1771208160993,0.4839405,1965.0,1964.0,1.44322082]
[1771208161195,0.4839405,1965.0,1964.0,0.917]
[1771208162983,0.4839405,1965.0,1964.1,0.05089578]
[1771208163184,0.4839405,1965.0,1964.0,0.917]
[1771208163783,0.48240164,1964.8,1963.9,0.001]
[1771208164402,0.48240164,1964.6,1963.9,0.001]
[1771208168880,0.48240164,1964.5,1963.9,0.001]
[1771208169891,0.48240164,1964.3,1963.9,0.001]
[1771208170790,0.48240164,1964.3,1964.0,0.001]
[1771208176013,0.49412482,1964.4,1964.0,0.001]
[1771208176920,0.0011,1964.8,1964.1,0.4630942]
[1771208177219,0.0011,1964.8,1964.0,0.4640942]
[1771208177220,0.49522482,1964.8,1964.0,0.4640942]
[1771208183698,0.0011,1964.8,1964.2,0.4630942]
[1771208183904,0.0011,1964.8,1964.6,7.77961061]
[1771208186524,0.0011,1964.8,1964.4,8.24270481]
[1771208187539,0.0011,1964.8,1964.4,7.77961061]
[1771208188041,0.0011,1964.8,1964.3,0.51397199]
[1771208188914,0.0011,1964.8,1964.1,0.4630942]
[1771208189119,0.49522482,1964.8,1964.0,0.4640942]
[1771208190614,0.49522482,1964.8,1964.0,0.51497002]
[1771208190822,0.49522482,1964.8,1964.0,0.4640942]
[1771208192815,0.49522482,1964.8,1964.2,0.4630942]
[1771208192816,0.0011,1964.8,1964.2,0.4630942]
[1771208193015,0.0011,1964.8,1964.3,0.51395965]
[1771208195137,0.0011,1964.8,1964.1,0.001]
[1771208195138,0.0011,1964.8,1964.1,0.51495965]
[1771208197014,0.49522482,1964.8,1964.1,0.51495965]
[1771208201637,0.0011,1964.8,1964.1,0.51495965]
[1771208201842,0.0011,1964.9,1964.3,0.4630942]
[1771208203423,0.0011,1964.9,1964.4,0.4955098]
[1771208206434,0.0011,1964.8,1964.4,0.4955098]
[1771208206845,0.00153886,1965.0,1964.5,0.45225951]
[1771208211647,0.00153886,1965.0,1964.6,0.45225951]
[1771208212327,0.00153886,1965.0,1964.6,1.34625951]
[1771208215359,0.00153886,1965.0,1964.7,0.45225951]
[1771208218070,0.00153886,1965.0,1964.7,8.2301854]
[1771208218385,0.0011,1964.9,1964.7,8.2301854]
[1771208218673,0.0011,1964.9,1964.6,0.895]
[1771208220572,0.0011,1964.9,1964.6,0.001]
[1771208220573,0.45461178,1964.9,1964.6,0.001]
[1771208221274,0.45461178,1964.9,1964.3,1.815]
[1771208221482,0.45461178,1964.9,1964.3,0.918]
[1771208222356,0.0011,1964.9,1964.4,0.50316044]
[1771208223648,0.0011,1964.9,1964.6,0.45225951]
[1771208223877,0.0011,1964.9,1964.7,0.05089315]
[1771208224670,0.0011,1964.9,1964.5,0.897]
[1771208226669,0.45461178,1964.9,1964.5,0.897]
[1771208227150,0.0011,1964.9,1964.5,0.897]
[1771208229361,0.45461178,1964.9,1964.5,0.897]
[1771208230080,0.45461178,1964.9,1964.3,0.918]
[1771208230378,0.45461178,1964.9,1964.6,0.001]
[1771208230678,0.0011,1964.8,1964.6,0.001]
[1771208239077,0.0011,1964.8,1964.6,0.01326341]
[1771208243797,0.00263886,1965.0,1964.6,0.01326341]
[1771208243798,0.00263886,1965.0,1964.7,0.49446031]
[1771208243971,0.0011,1965.2,1964.6,9.9634314]
[1771208243972,0.0011,1965.2,1964.9,0.49446031]
[1771208244302,0.0011,1965.2,1965.0,7.77966762]
[1771208245063,0.0011,1965.2,1965.0,8.27412793]
[1771208246473,0.0011,1965.2,1964.9,0.01226153]
[1771208246697,0.48435273,1965.2,1964.6,1.39346031]
[1771208246908,0.48435273,1965.2,1964.6,0.899]
[1771208249972,0.0011,1965.2,1964.7,0.49446031]
[1771208250782,0.48435273,1965.2,1964.6,0.899]
[1771208252013,0.48435273,1965.2,1964.6,1.39346031]
[1771208254006,0.0011,1965.1,1964.6,1.39346031]
[1771208255786,0.0011,1965.1,1964.7,0.49446031]
[1771208257816,0.0011,1965.3,1964.9,0.49446031]
[1771208261421,0.0011,1965.3,1964.9,1.76678844]
[1771208261621,0.0011,1965.3,1964.9,0.49446031]
[1771208261823,0.0011,1965.3,1965.0,0.904]
[1771208262212,0.48435273,1965.3,1965.0,0.904]
[1771208262421,0.0011,1965.3,1965.0,0.904]
[1771208266616,0.0011,1965.2,1965.0,0.904]
[1771208268932,0.0011,1965.4,1965.1,7.77584256]
[1771208269941,0.0011,1965.4,1964.8,0.909]
[1771208269942,0.46677299,1965.4,1964.8,0.909]
[1771208270833,0.0011,1965.4,1964.9,8.26599991]
[1771208271568,0.0011,1965.4,1965.1,7.77584256]
[1771208271933,0.46677299,1965.6,1965.3,7.77584256]
[1771208271934,0.0011,1965.6,1965.3,7.77584256]
[1771208272329,0.46677299,1965.6,1965.1,8.68584256]
[1771208276458,0.0011,1965.6,1965.3,8.26599991]
[1771208276662,0.0011,1965.6,1965.4,0.915]
[1771208277947,0.46677299,1965.6,1965.4,0.915]
[1771208278148,0.46677299,1965.6,1965.2,0.918]
[1771208278851,0.46677299,1965.6,1964.9,0.49015735]
[1771208279045,0.46677299,1965.6,1965.1,8.69384256]
[1771208279459,0.0011,1965.5,1965.1,8.69384256]
[1771208279664,0.0011,1965.5,1965.1,9.18399991]
[1771208279966,0.0011,1965.5,1965.2,0.49015735]
[1771208280458,0.0011,1965.8,1965.1,0.918]
[1771208280662,0.0011,1965.8,1965.2,0.49015735]
[1771208280870,0.0011,1965.8,1965.3,0.49015735]
[1771208281078,0.0011,1965.8,1965.4,0.919]
[1771208283866,0.46567299,1965.7,1965.4,0.919]
[1771208284249,0.0011,1965.8,1965.4,0.919]
[1771208284673,0.46677299,1965.8,1965.4,0.919]
[1771208286571,0.46677299,1965.8,1965.1,0.919]
[1771208286754,0.46677299,1965.8,1965.1,1.40915735]
[1771208286953,0.46677299,1965.8,1965.2,0.49015735]
[1771208290349,0.0011,1965.8,1965.2,0.49015735]
[1771208290881,0.46677299,1965.8,1965.2,0.49015735]
[1771208291051,0.0011,1965.7,1965.2,0.49015735]
[1771208292353,0.0011,1965.7,1965.3,0.0504971]
[1771208298985,0.49069938,1965.7,1965.3,0.0504971]
[1771208299278,0.49069938,1965.7,1965.1,0.9694971]
[1771208299693,0.49069938,1965.7,1965.1,1.46904593]
[1771208299883,0.0011,1965.7,1965.2,7.77351871]
[1771208300071,0.0011,1965.7,1965.3,0.05049196]
[1771208302969,0.0011,1965.7,1965.4,0.001]
[1771208303786,0.49069938,1965.7,1965.4,0.001]
[1771208303985,0.49069938,1965.7,1965.1,0.92]
[1771208304964,0.48959938,1965.4,1965.1,0.001]
[1771208306520,0.48959938,1965.2,1965.1,0.001]
[1771208308823,0.48959938,1965.2,1964.9,0.001]
[1771208310811,0.48959938,1965.0,1964.6,0.001]
[1771208312981,7.77351871,1965.5,1964.6,0.001]
[1771208312982,0.48959938,1964.8,1964.6,0.001]
[1771208313414,0.48959938,1964.8,1964.3,0.001]
[1771208314013,0.48959938,1964.6,1964.3,0.001]
[1771208314507,0.779,1964.5,1964.3,0.001]
[1771208314707,0.48959938,1964.4,1964.3,0.001]
[1771208314912,0.48959938,1964.4,1964.1,0.001]
[1771208316201,0.48959938,1964.2,1964.1,0.001]
[1771208316942,0.48959938,1964.2,1963.9,0.001]
[1771208317301,0.48959938,1964.0,1963.7,0.001]
[1771208317505,0.48959938,1963.8,1963.2,0.05075875]
[1771208317731,0.48959938,1963.8,1963.1,1.47030758]
[1771208318233,0.48959938,1963.8,1963.1,1.41954883]
[1771208318908,0.48959938,1963.8,1963.0,0.91753886]
[1771208318909,0.48959938,1963.6,1963.0,0.91753886]
[1771208319224,0.48959938,1963.4,1963.0,0.91753886]
[1771208319616,0.48959938,1963.6,1963.0,0.91753886]
[1771208319802,0.48959938,1963.6,1963.0,0.00153886]
[1771208324146,0.46377446,1963.4,1963.0,0.00153886]
[1771208325754,0.46195079,1963.2,1963.0,0.00153886]
[1771208328145,0.46195079,1963.2,1963.1,0.001]
[1771208330241,0.46195079,1963.2,1963.0,0.00253886]
[1771208330443,0.46195079,1963.2,1962.8,0.001]
[1771208331773,0.46195079,1963.2,1962.7,0.0011]
[1771208333475,0.46195079,1962.9,1962.0,0.00153886]
[1771208333691,0.46195079,1962.7,1962.0,0.49554495]
[1771208334409,0.46195079,1962.7,1962.0,0.00153886]
[1771208336600,10.18855426,1962.7,1962.0,0.00153886]
[1771208336926,0.46195079,1962.6,1962.0,0.00153886]
[1771208337232,0.46195079,1962.5,1962.0,0.00153886]
[1771208337524,9.72660347,1962.6,1962.0,0.00153886]
[1771208337525,0.46195079,1962.3,1962.0,0.00153886]
[1771208338482,0.46195079,1962.5,1962.0,0.00153886]
[1771208338685,0.788,1962.4,1962.0,0.00153886]
[1771208339120,1.24995079,1962.4,1962.0,0.00153886]
[1771208339596,0.46195079,1962.3,1962.0,0.00153886]
[1771208340294,0.46195079,1962.3,1961.4,0.917]
[1771208340721,0.46195079,1962.3,1961.4,1.41100609]
[1771208341026,0.788,1962.4,1962.1,0.0011]
[1771208341187,1.24995079,1962.4,1962.1,0.0011]
[1771208341819,1.37995079,1962.9,1962.1,0.49510609]
[1771208342125,0.788,1962.6,1962.1,0.49510609]
[1771208342498,0.46195079,1962.9,1962.1,0.49510609]
[1771208342703,0.00153886,1963.0,1962.1,0.49510609]
[1771208342918,0.00153886,1963.0,1962.3,0.49400609]
[1771208345502,0.00153886,1963.0,1962.4,0.49400609]
[1771208348135,0.00153886,1963.0,1962.2,1.27407515]
[1771208348136,0.00153886,1963.0,1962.2,0.49400609]
[1771208348314,0.46348965,1963.0,1962.2,0.49400609]
[1771208351959,0.46348965,1963.0,1962.1,0.9191]
[1771208352256,0.46348965,1963.0,1962.1,1.41310609]
[1771208353052,0.46348965,1963.0,1962.1,0.49510609]
[1771208353433,0.46295079,1962.9,1962.1,0.49510609]
[1771208353630,0.46295079,1962.9,1962.1,0.0011]
[1771208353834,0.49716788,1962.7,1962.1,0.0011]
[1771208354821,0.785,1962.8,1962.1,0.0011]
[1771208355050,0.001,1962.9,1962.1,0.45214211]
[1771208355548,0.49816788,1962.9,1962.1,0.0011]
[1771208358572,0.49716788,1962.7,1962.1,0.0011]
[1771208358765,0.49716788,1962.4,1961.8,0.0011]
[1771208358931,0.49716788,1962.3,1961.8,0.0011]
[1771208360928,0.59956788,1962.7,1961.8,0.0011]
[1771208361129,0.49716788,1962.5,1961.8,0.0011]
[1771208362535,0.787,1962.4,1961.8,0.0011]
[1771208362737,1.28416788,1962.4,1961.8,0.0011]
[1771208363560,0.787,1962.5,1961.8,0.45214211]
[1771208364848,0.49716788,1962.6,1961.8,0.45214211]
[1771208365049,0.49716788,1962.6,1961.9,0.0011]
[1771208365050,1.28516788,1962.6,1961.9,0.0011]
[1771208365253,0.001,1962.5,1961.9,0.0011]
[1771208365962,0.001,1962.5,1961.9,0.45214211]
[1771208369037,0.001,1962.5,1962.0,0.45104211]
[1771208374743,0.001,1962.5,1962.2,0.45104211]
[1771208374964,0.001,1962.5,1962.1,0.45104211]
[1771208380779,0.001,1962.5,1962.0,0.904]
[1771208381293,0.001,1962.5,1962.1,0.45104211]
[1771208387288,0.001,1962.5,1962.2,0.49090362]
[1771208388448,0.001,1962.4,1962.2,0.49090362]
[1771208388653,0.001,1962.4,1962.1,0.0011]
[1771208391749,0.001,1962.4,1962.0,0.90359155]
[1771208394276,0.001,1962.4,1962.1,0.49090362]
[1771208394981,0.001,1962.4,1962.0,1.39449517]
[1771208395164,0.001,1962.4,1962.1,0.49090362]
[1771208396681,0.001,1962.4,1962.0,0.90359155]
[1771208396982,0.47505389,1962.4,1962.0,0.90359155]
[1771208397188,0.47505389,1962.4,1962.0,0.0011]
[1771208397396,0.47505389,1962.4,1961.6,0.0011]
[1771208400296,0.47505389,1962.4,1961.7,0.0011]
[1771208400671,0.47405389,1962.2,1961.7,0.0011]
[1771208400873,0.47405389,1962.2,1961.8,0.0033]
[1771208401178,0.001,1962.3,1961.8,0.0033]
[1771208401376,0.001,1962.3,1961.9,0.0033]
[1771208401580,0.001,1962.3,1961.8,0.0033]
[1771208402025,0.47505389,1962.3,1961.9,0.0033]
[1771208402174,0.47505389,1962.3,1961.8,0.0033]
[1771208402609,0.47505389,1962.3,1961.7,0.0011]
[1771208402977,0.47505389,1962.3,1961.6,0.0011]
[1771208402978,0.47405389,1962.0,1961.6,0.0011]
[1771208403976,0.47405389,1961.7,1961.0,0.00153886]
[1771208404198,0.47405389,1961.7,1961.1,0.0033]
[1771208404392,0.47405389,1961.7,1960.2,2.18637824]
[1771208404393,0.47405389,1961.7,1960.3,0.49090362]
[1771208404698,0.47405389,1961.4,1960.3,0.49090362]
[1771208404897,0.47405389,1961.3,1960.3,0.49090362]
[1771208405193,0.47405389,1961.3,1960.2,0.911]
[1771208406014,0.47405389,1961.2,1960.0,0.91953886]
[1771208406267,0.47405389,1961.1,1960.1,0.49090362]
[1771208406550,0.47405389,1961.1,1960.0,0.91953886]
[1771208406755,0.47405389,1960.9,1960.0,0.91953886]
[1771208406922,0.47405389,1960.7,1960.0,0.00153886]
[1771208407429,0.47405389,1960.6,1960.0,0.00153886]
[1771208407946,0.47405389,1960.4,1960.0,0.00153886]
[1771208408150,0.47405389,1960.4,1959.3,1.40890362]
[1771208408351,0.47405389,1960.3,1959.3,0.918]
[1771208408726,0.47405389,1960.3,1959.4,0.49090362]
[1771208408931,0.47405389,1960.3,1959.4,0.54193965]
[1771208409131,0.1024,1960.7,1959.4,0.54193965]
[1771208409132,0.918,1960.7,1959.5,0.49090362]
[1771208409443,0.47405389,1960.6,1959.6,0.05103082]
[1771208409649,0.47405389,1960.6,1959.5,0.5419347]
[1771208410754,0.47405389,1960.6,1959.5,0.49090362]
[1771208411257,0.47405389,1960.5,1959.3,1.40890362]
[1771208412670,0.47405389,1960.5,1959.6,0.0011]
[1771208413535,0.45335272,1960.7,1959.6,0.45660837]
[1771208413739,1.01635272,1960.7,1959.8,0.45550837]
[1771208413935,0.45335272,1960.6,1959.6,0.0011]
[1771208414169,0.45335272,1960.6,1959.6,0.45660837]
[1771208414674,0.45335272,1960.6,1959.6,1.73235918]
[1771208414845,0.45335272,1960.6,1959.7,0.45550837]
[1771208415045,0.45589158,1961.0,1959.8,0.50652875]
[1771208415567,1.22989158,1961.0,1959.8,0.50652875]
[1771208415768,0.45589158,1961.0,1959.8,0.50652875]
[1771208416066,0.00253886,1961.0,1960.0,0.45550837]
[1771208416273,0.45335272,1960.9,1960.1,0.05101257]
[1771208416971,0.45335272,1960.9,1960.0,0.50652094]
[1771208418270,0.45335272,1960.9,1960.0,0.05101257]
[1771208418571,0.00253886,1961.0,1960.2,0.45550837]
[1771208419673,0.00253886,1961.0,1960.3,0.45550837]
[1771208421564,0.00253886,1961.0,1960.2,0.05097926]
[1771208422171,0.00253886,1961.0,1960.1,0.50649671]
[1771208423189,0.00253886,1961.0,1960.1,1.78193583]
[1771208423879,0.00253886,1961.0,1960.1,0.50649671]
[1771208424046,0.00253886,1961.0,1960.0,0.908]
[1771208424047,0.45589158,1961.0,1960.0,0.908]
[1771208424252,0.45589158,1961.0,1960.0,0.9590204]
[1771208424475,0.45589158,1961.0,1960.0,0.908]
[1771208424649,0.45589158,1961.0,1960.1,0.50651835]
[1771208424650,0.00253886,1961.0,1960.1,0.50651835]
[1771208424991,0.00253886,1961.0,1960.1,0.50761835]
[1771208425179,0.001,1960.9,1960.1,0.50761835]
[1771208425982,0.001,1960.9,1960.3,0.45550837]
[1771208426207,0.001,1960.9,1960.5,0.45550837]
[1771208426692,0.45335272,1961.6,1960.5,0.45550837]
[1771208427269,0.45335272,1961.6,1960.6,0.50650533]
[1771208427495,0.45335272,1961.6,1960.6,0.05099696]
[1771208427691,0.45335272,1961.6,1960.4,0.50651803]
[1771208427990,0.45335272,1961.6,1960.5,1.73069327]
[1771208428296,0.45335272,1961.8,1960.7,0.45550837]
[1771208428473,0.45489158,1962.0,1960.7,0.45550837]
[1771208429381,0.45489158,1962.0,1960.9,0.45550837]
[1771208430101,0.45489158,1962.0,1961.0,0.45550837]
[1771208430280,0.00153886,1962.0,1961.0,0.45550837]
[1771208431180,0.45489158,1962.0,1961.0,1.36650837]
[1771208431574,0.45489158,1962.0,1961.1,0.45550837]
[1771208431773,0.00153886,1962.0,1961.1,0.45550837]
[1771208432012,0.45489158,1962.0,1961.1,0.45550837]
[1771208432995,0.45489158,1962.0,1961.1,1.73023876]
[1771208433204,0.45489158,1962.0,1961.0,2.23682843]
[1771208433390,0.45489158,1962.0,1961.0,0.911]
[1771208435801,0.45489158,1962.0,1961.1,0.05099179]
[1771208436826,0.45489158,1962.0,1961.1,0.50650016]
[1771208437604,0.001,1961.9,1961.1,0.50650016]
[1771208438203,0.45435272,1961.9,1961.1,0.50650016]
[1771208439494,0.45435272,1961.9,1961.1,0.05099179]
[1771208440630,0.45435272,1961.9,1961.0,0.911]
[1771208440802,0.45435272,1961.9,1960.7,1.37350837]
[1771208440994,0.45335272,1961.6,1960.3,0.45550837]
[1771208441194,0.45335272,1961.4,1960.3,0.50652097]
[1771208442004,0.45335272,1961.4,1960.3,1.78182131]
[1771208442312,0.45335272,1961.4,1960.4,0.45550837]
[1771208443026,0.45335272,1961.4,1960.3,0.0510126]
[1771208443207,0.45335272,1961.4,1960.2,0.50652357]
[1771208443608,0.45335272,1961.4,1960.3,0.4735912]
[1771208443913,0.46514118,1961.3,1960.4,0.05100999]
[1771208444107,0.46514118,1961.3,1960.4,0.52460119]
[1771208445122,0.46514118,1961.3,1960.4,0.05100999]
[1771208445311,0.46514118,1961.3,1960.3,0.05100999]
[1771208445509,0.46514118,1961.3,1960.4,0.45360966]
[1771208445712,1.95321577,1961.5,1960.5,0.50461444]
[1771208446033,0.49621577,1961.5,1960.5,0.50461444]
[1771208447526,0.49621577,1961.5,1960.6,0.45360966]
[1771208449324,0.49621577,1961.5,1960.7,0.0011]
[1771208450198,0.49621577,1961.5,1960.7,0.45470966]
[1771208452900,0.49621577,1961.8,1960.7,0.45470966]
[1771208453102,0.49621577,1961.8,1960.9,0.45360966]
[1771208453616,0.49621577,1961.8,1960.7,1.27615221]
[1771208453617,0.49621577,1961.8,1960.7,0.50570033]
[1771208454132,0.49621577,1961.8,1960.7,0.0011]
[1771208457913,2.17621577,1961.7,1960.7,0.50569512]
[1771208458237,0.49621577,1961.7,1960.7,0.50569512]
[1771208458436,0.49621577,1961.7,1960.8,0.45360966]
[1771208458625,0.49621577,1961.7,1961.0,0.45360966]
[1771208459027,0.764,1961.9,1961.0,0.45360966]
[1771208459028,0.49721577,1961.9,1961.0,0.45360966]
[1771208459231,0.001,1961.9,1961.1,0.05097531]
[1771208459413,0.49721577,1961.9,1961.0,0.50458497]
[1771208460027,0.00153886,1962.0,1961.1,0.45360966]
[1771208460228,0.00153886,1962.0,1961.2,0.45360966]
[1771208461342,0.00153886,1962.0,1961.2,0.50457977]
[1771208461526,0.001,1961.6,1961.2,0.50457977]
[1771208462843,0.001,1961.6,1961.3,0.45360966]
[1771208463352,0.001,1961.6,1961.1,0.05097011]
[1771208463526,0.001,1961.6,1960.9,0.45360966]
[1771208465245,0.001,1961.6,1960.8,0.45470966]
[1771208465246,0.49721577,1961.6,1960.8,0.45470966]
[1771208466319,0.49721577,1961.6,1960.8,0.0011]
[1771208470670,0.49721577,1961.6,1960.8,0.45470966]
[1771208471153,0.49721577,1961.6,1960.8,0.0011]
[1771208472255,0.49621577,1961.5,1960.8,0.0011]
[1771208472644,0.49621577,1961.2,1960.8,0.0011]
[1771208472846,0.49621577,1961.0,1960.1,0.0011]
[1771208473051,0.49621577,1960.7,1960.1,0.0011]
[1771208475060,0.49621577,1960.7,1960.6,0.0011]
[1771208475268,0.49621577,1960.7,1960.1,0.0011]
[1771208476346,0.49621577,1960.7,1960.0,0.00263886]
[1771208477029,0.49136018,1960.6,1960.0,0.00263886]
[1771208477235,1.25036018,1960.5,1960.0,0.00263886]
[1771208477759,0.49136018,1960.5,1960.0,0.00263886]
[1771208477957,0.759,1960.6,1960.0,0.00263886]
[1771208478161,1.25136018,1960.7,1960.0,0.00263886]
[1771208478851,0.49136018,1960.6,1960.0,0.00263886]
[1771208480865,0.49136018,1960.0,1959.0,0.00153886]
[1771208481060,0.761,1959.9,1958.9,0.47981437]
[1771208481871,0.49289904,1960.0,1958.9,0.47981437]
[1771208482081,0.764,1959.9,1958.9,0.47981437]
[1771208482858,0.00153886,1960.0,1959.0,0.48107551]
[1771208483264,0.00153886,1960.0,1959.2,0.48107551]
[1771208483974,0.00153886,1960.0,1959.6,0.48107551]
[1771208484173,0.49136018,1960.8,1959.6,0.48107551]
[1771208484355,1.01436018,1960.8,1959.6,0.48107551]
[1771208484677,0.49136018,1960.8,1959.6,0.48107551]
[1771208485176,0.49136018,1960.8,1959.7,0.48107551]
[1771208486159,0.762,1960.9,1959.7,0.48107551]
[1771208486667,0.001,1960.7,1959.7,0.48107551]
[1771208486984,0.49236018,1960.7,1959.6,0.903]
[1771208487197,0.49236018,1960.7,1959.7,0.48107551]